bitfinex-derivatives/quotes_BNBF0:USTF0_20250630
["timestamp","ask_amount","ask_price","bid_price","bid_amount"]
[1751319519208,2.26745088,659.22,658.74,1.563]
[1751319520506,0.26413462,659.32,658.74,1.563]
[1751319520507,2.26745088,659.25,658.74,1.563]
[1751319524509,2.26745088,659.24,658.74,1.563]
[1751319525114,2.26745088,659.24,658.75,2.089]
[1751319526413,2.26745088,659.24,658.76,1.491]
[1751319528114,2.26745088,659.21,658.76,1.491]
[1751319528613,2.26745088,659.2,658.76,1.491]
[1751319530010,2.26745088,659.19,658.76,1.491]
[1751319530511,2.26745088,659.16,658.76,1.491]
[1751319532315,2.26745088,659.15,658.76,1.491]
[1751319535314,2.26745088,659.14,658.76,1.491]
[1751319537321,2.26745088,659.13,658.76,1.491]
[1751319539327,2.26745088,659.12,658.76,1.491]
[1751319540927,2.26745088,659.13,658.76,1.491]
[1751319541825,2.26745088,659.12,658.76,1.491]
[1751319542428,2.26745088,659.11,658.76,1.491]
[1751319543329,2.26745088,659.09,658.76,1.491]
[1751319543533,2.26745088,659.08,658.76,1.491]
[1751319543929,2.26745088,659.09,658.76,1.491]
[1751319544126,2.26745088,659.08,658.76,1.491]
[1751319544529,2.26745088,659.09,658.76,1.491]
[1751319546430,2.26745088,659.08,658.76,1.491]
[1751319550236,2.26745088,659.08,658.77,1.864]
[1751319556138,2.26745088,659.07,658.77,1.864]
[1751319562342,2.26745088,659.07,658.76,1.491]
[1751319565842,2.26745088,659.07,658.77,2.373]
[1751319566145,2.26745088,659.08,658.77,2.373]
[1751319576150,2.26745088,659.06,658.77,2.373]
[1751319582955,2.26745088,659.06,658.72,4.086]
[1751319586061,2.26745088,659.06,658.73,1.03943583]
[1751319586262,2.26745088,659.08,658.74,1.03943583]
[1751319586557,2.26745088,659.08,658.72,4.086]
[1751319586762,2.26745088,659.08,658.73,1.03943609]
[1751319587060,2.26745088,659.08,658.74,1.03943609]
[1751319587261,2.26745088,659.08,658.73,1.564]
[1751319587461,2.26745088,659.08,658.74,1.03943645]
[1751319587662,2.26745088,659.08,658.73,1.564]
[1751319587858,2.26745088,659.08,658.74,1.03943645]
[1751319588060,2.26745088,659.08,658.73,1.564]
[1751319588261,2.26745088,659.08,658.74,1.03943645]
[1751319588459,2.26745088,659.08,658.73,1.564]
[1751319588658,2.26745088,659.08,658.74,1.03943688]
[1751319588863,2.26745088,659.08,658.73,1.564]
[1751319589062,2.26745088,659.08,658.74,1.03943688]
[1751319589265,2.26745088,659.08,658.73,1.564]
[1751319589465,2.26745088,659.08,658.74,1.03943713]
[1751319589665,2.26745088,659.08,658.73,1.564]
[1751319589964,2.26745088,659.08,658.74,1.03943744]
[1751319590260,2.26745088,659.08,658.73,1.564]
[1751319590462,2.26745088,659.08,658.74,1.03943808]
[1751319590664,2.26745088,659.08,658.73,1.564]
[1751319590862,2.26745088,659.08,658.74,1.03943808]
[1751319591065,2.26745088,659.08,658.73,1.564]
[1751319591266,2.26745088,659.08,658.74,1.03943808]
[1751319591466,2.26745088,659.08,658.73,1.564]
[1751319591668,2.26745088,659.08,658.74,1.03943883]
[1751319591866,2.26745088,659.08,658.73,1.564]
[1751319592167,2.26745088,659.08,658.74,1.03943883]
[1751319592467,2.26745088,659.08,658.73,1.564]
[1751319592767,2.26745088,659.08,658.74,1.03943967]
[1751319593062,2.26745088,659.08,658.73,1.564]
[1751319593367,2.26745088,659.11,658.73,1.564]
[1751319594266,2.26745088,659.12,658.73,1.564]
[1751319595365,2.26745088,659.08,658.73,1.564]
[1751319597270,2.26745088,659.09,658.73,1.564]
[1751319598372,2.26745088,659.1,658.73,1.564]
[1751319600568,2.26745088,659.18,658.73,1.564]
[1751319600773,2.26745088,659.19,658.73,1.564]
[1751319601676,2.26745088,659.18,658.73,1.564]
[1751319602274,2.26745088,659.19,658.73,1.564]
[1751319602875,2.26745088,659.19,658.74,2.319]
[1751319603778,2.26745088,659.19,658.75,1.592]
[1751319604677,2.26745088,659.16,658.75,1.592]
[1751319605182,2.26745088,659.17,658.75,1.592]
[1751319605380,2.26745088,659.18,658.75,1.592]
[1751319605884,2.26745088,659.18,658.76,1.558]
[1751319606083,2.26745088,659.17,658.76,1.558]
[1751319606383,2.26745088,659.18,658.76,1.558]
[1751319607085,2.26745088,659.21,658.76,1.558]
[1751319607988,2.26745088,659.21,658.77,1.584]
[1751319608684,2.26745088,659.22,658.77,1.584]
[1751319609087,2.26745088,659.24,658.77,1.584]
[1751319610285,2.26745088,659.2,658.77,1.584]
[1751319610692,2.26745088,659.19,658.77,1.584]
[1751319611490,2.26745088,659.2,658.77,1.584]
[1751319611694,2.26745088,659.19,658.77,1.584]
[1751319614994,2.26745088,659.18,658.77,1.584]
[1751319615496,2.26745088,659.21,658.77,1.584]
[1751319615796,2.26745088,659.2,658.77,1.584]
[1751319616895,2.26745088,659.11,658.77,1.584]
[1751319617093,2.26745088,659.12,658.77,1.584]
[1751319617693,2.26745088,659.11,658.77,1.584]
[1751319618196,2.26745088,659.1,658.77,1.584]
[1751319618694,2.26745088,659.09,658.77,1.584]
[1751319620002,2.26745088,659.1,658.77,1.584]
[1751319621198,2.26745088,659.09,658.77,1.584]
[1751319621603,2.26745088,659.08,658.77,1.584]
[1751319628009,2.26745088,659.12,658.77,1.584]
[1751319628807,2.26745088,659.13,658.77,1.584]
[1751319633815,2.26745088,659.11,658.77,1.584]
[1751319635217,2.26745088,659.11,658.76,1.558]
[1751319635517,2.26745088,659.12,658.76,1.558]
[1751319636018,2.26745088,659.18,658.76,1.558]
[1751319637622,2.26745088,659.18,658.77,1.884]
[1751319637817,0.26413462,659.32,658.77,1.884]
[1751319637818,2.26745088,659.17,658.77,1.884]
[1751319638521,2.26745088,659.17,658.78,1.687]
[1751319638821,2.26745088,659.15,658.78,1.687]
[1751319645434,2.26745088,659.14,658.78,1.687]
[1751319645831,2.26745088,659.07,658.78,1.687]
[1751319646330,2.26745088,659.1,658.78,1.687]
[1751319646835,2.26745088,659.11,658.78,1.687]
[1751319647036,2.26745088,659.09,658.78,1.687]
[1751319648637,2.26745088,659.11,658.78,1.687]
[1751319649137,2.26745088,659.1,658.78,1.687]
[1751319652935,2.26745088,659.1,658.79,1.733]
[1751319656345,2.26745088,659.08,658.79,1.733]
[1751319657946,2.26745088,659.09,658.79,1.733]
[1751319658644,2.26745088,659.08,658.79,1.733]
[1751319659046,2.26745088,659.09,658.79,1.733]
[1751319660248,2.26745088,659.12,658.79,1.733]
[1751319661949,2.26745088,659.11,658.79,1.733]
[1751319664347,2.26745088,659.12,658.79,1.733]
[1751319665048,2.26745088,659.12,658.78,1.687]
[1751319665846,2.26745088,659.13,658.78,1.687]
[1751319666250,2.26745088,659.12,658.78,1.687]
[1751319667754,2.26745088,659.12,658.79,1.457]
[1751319667949,2.26745088,659.11,658.79,1.457]
[1751319669555,2.26745088,659.1,658.79,1.457]
[1751319670155,2.26745088,659.09,658.79,1.457]
[1751319670357,2.26745088,659.08,658.79,1.457]
[1751319671254,2.26745088,659.07,658.79,1.457]
[1751319672661,2.26745088,659.08,658.79,1.457]
[1751319674157,2.26745088,659.07,658.79,1.457]
[1751319674461,2.26745088,659.06,658.79,1.457]
[1751319676458,0.26413863,659.2,658.79,1.457]
[1751319676459,2.26745088,659.08,658.79,1.457]
[1751319679165,2.26745088,659.06,658.79,1.457]
[1751319681765,2.26745088,659.05,658.79,1.457]
[1751319682065,2.26745088,659.06,658.79,1.457]
[1751319682571,2.26745088,659.05,658.79,1.457]
[1751319685474,2.26745088,659.04,658.79,1.457]
[1751319689074,2.26745088,659.05,658.79,1.457]
[1751319690779,2.26745088,659.05,658.75,1.769]
[1751319692278,2.26745088,659.06,658.75,1.769]
[1751319694075,2.26745088,659.06,658.76,1.675]
[1751319697383,2.26745088,659.05,658.76,1.675]
[1751319708189,2.26745088,659.1,658.76,1.675]
[1751319715292,2.26745088,659.12,658.76,1.675]
[1751319715796,2.26745088,659.12,658.76,3.795]
[1751319718193,2.26745088,659.06,658.76,3.795]
[1751319718993,2.26745088,659.12,658.76,3.795]
[1751319719198,2.26745088,659.12,658.76,2.12]
[1751319722295,2.26745088,659.12,658.77,2.4]
[1751319722596,2.26745088,659.13,658.77,2.4]
[1751319725200,2.26745088,659.12,658.77,2.4]
[1751319728600,2.26745088,659.11,658.77,2.4]
[1751319728804,2.26745088,659.06,658.77,2.4]
[1751319729005,2.26745088,659.04,658.77,2.4]
[1751319731904,2.26745088,659.09,658.77,2.4]
[1751319732306,2.26745088,659.08,658.77,2.4]
[1751319734309,2.26745088,659.08,658.76,2.12]
[1751319735108,2.26745088,659.09,658.76,2.12]
[1751319738214,2.26745088,659.09,658.77,1.843]
[1751319738611,2.26745088,659.08,658.77,1.843]
[1751319738914,2.26745088,659.09,658.77,1.843]
[1751319739217,2.26745088,659.1,658.77,1.843]
[1751319741821,2.26745088,659.05,658.77,1.843]
[1751319747424,2.26745088,659.08,658.77,1.843]
[1751319748721,2.26745088,659.07,658.77,1.843]
[1751319750625,2.26745088,659.11,658.77,1.843]
[1751319751923,2.26745088,659.14,658.77,1.843]
[1751319753325,0.26413863,659.2,658.77,1.843]
[1751319753824,2.26745088,659.18,658.77,1.843]
[1751319754328,2.26745088,659.19,658.77,1.843]
[1751319756625,2.26745088,659.19,658.78,1.769]
[1751319760435,2.26745088,659.18,658.79,2.327]
[1751319761929,2.26745088,659.17,658.79,2.327]
[1751319763032,2.26745088,659.17,658.8,1.958]
[1751319763229,2.26745088,659.07,658.8,1.958]
[1751319763534,2.26745088,659.05,658.8,1.958]
[1751319763833,2.26745088,659.04,658.8,1.958]
[1751319764427,2.26745088,659.05,658.8,1.958]
[1751319765029,2.26745088,659.13,658.8,1.958]
[1751319769135,2.26745088,659.11,658.8,1.958]
[1751319774744,2.26745088,659.1,658.8,1.958]
[1751319774945,2.26745088,658.89,658.8,1.958]
[1751319775245,2.26745088,658.88,658.8,1.958]
[1751319775444,2.26745088,658.89,658.8,1.958]
[1751319776540,2.26745088,658.9,658.8,1.958]
[1751319777241,2.26745088,658.91,658.8,1.958]
[1751319778541,2.26745088,658.92,658.8,1.958]
[1751319779045,2.26745088,658.94,658.8,1.958]
[1751319779340,2.26745088,658.93,658.8,1.958]
[1751319782242,2.26745088,658.94,658.8,1.958]
[1751319784046,2.26745088,658.94,658.79,2.327]
[1751319784642,2.26745088,658.95,658.79,2.327]
[1751319786546,2.26745088,658.95,658.8,2.379]
[1751319787546,2.26745088,658.96,658.8,2.379]
[1751319789646,2.26745088,658.99,658.8,2.379]
[1751319792747,2.26745088,658.92,658.8,2.379]
[1751319794351,2.26745088,658.93,658.8,2.379]
[1751319796555,2.26745088,658.94,658.8,2.379]
[1751319797754,2.26745088,659.04,658.8,2.379]
[1751319798054,2.26745088,659.03,658.8,2.379]
[1751319798454,2.26745088,659.08,658.8,2.379]
[1751319800159,2.26745088,659.09,658.8,2.379]
[1751319801461,2.26745088,659.1,658.8,2.379]
[1751319802861,2.26745088,659.09,658.8,2.379]
[1751319803061,2.26745088,659.05,658.8,2.379]
[1751319803560,2.26745088,659.06,658.8,2.379]
[1751319804961,2.26745088,659.07,658.8,2.379]
[1751319805366,2.26745088,659.06,658.8,2.379]
[1751319805562,2.26745088,659.07,658.8,2.379]
[1751319807468,2.26745088,659.08,658.8,2.379]
[1751319807764,2.26745088,659.04,658.8,2.379]
[1751319808269,2.26745088,658.96,658.8,2.379]
[1751319809266,2.26745088,658.94,658.8,2.379]
[1751319810071,2.26745088,658.9,658.8,2.379]
[1751319810567,2.26745088,658.9,658.56,1.662]
[1751319812572,2.26745088,658.96,658.56,1.662]
[1751319812773,2.26745088,658.96,658.57,1.971]
[1751319814276,2.26745088,658.95,658.57,1.971]
[1751319814477,2.26745088,658.96,658.57,1.971]
[1751319814773,2.26745088,658.95,658.57,1.971]
[1751319815673,2.26745088,658.96,658.57,1.971]
[1751319816271,2.26745088,658.95,658.57,1.971]
[1751319816475,2.26745088,658.96,658.57,1.971]
[1751319818472,2.26745088,658.95,658.57,1.971]
[1751319819377,2.26745088,658.94,658.58,2.287]
[1751319820979,2.26745088,658.93,658.58,2.287]
[1751319821577,2.26745088,658.92,658.58,2.287]
[1751319822377,2.26745088,658.86,658.58,2.287]
[1751319824378,2.26745088,658.85,658.58,2.287]
[1751319825576,2.26745088,658.84,658.58,2.287]
[1751319826280,2.26745088,658.83,658.58,2.287]
[1751319829083,2.26745088,658.86,658.58,2.287]
[1751319830481,2.26745088,658.85,658.58,2.287]
[1751319830981,2.26745088,659.17,658.58,2.287]
[1751319832380,2.26745088,659.16,658.58,2.287]
[1751319833280,2.26745088,659.18,658.58,2.287]
[1751319833586,2.26745088,659.16,658.58,2.287]
[1751319834781,2.26745088,659.14,658.58,2.287]
[1751319835386,2.26745088,659.13,658.58,2.287]
[1751319837088,2.26745088,659.11,658.58,2.287]
[1751319837898,2.26745088,659.0,658.59,2.412]
[1751319838400,2.26745088,658.99,658.59,2.412]
[1751319838700,2.26745088,659.0,658.59,2.412]
[1751319839201,2.26745088,658.93,658.59,2.412]
[1751319839396,2.26745088,658.9,658.59,2.412]
[1751319840598,2.26745088,658.85,658.59,2.412]
[1751319841902,2.26745088,658.86,658.59,2.412]
[1751319842201,2.26745088,658.82,658.59,2.412]
[1751319842400,2.26745088,658.82,658.6,1.733]
[1751319843306,2.26745088,658.83,658.6,1.733]
[1751319843604,2.26745088,658.82,658.6,1.733]
[1751319844003,2.26745088,658.8,658.6,1.733]
[1751319844202,2.26745088,658.81,658.6,1.733]
[1751319844406,2.26745088,658.8,658.6,1.733]
[1751319845005,2.26745088,658.81,658.6,1.733]
[1751319845301,2.26745088,658.82,658.6,1.733]
[1751319845506,2.26745088,658.81,658.6,1.733]
[1751319846004,0.26425295,658.88,658.6,1.733]
[1751319846005,2.53170383,658.88,658.6,1.733]
[1751319847708,2.26745088,658.87,658.6,1.733]
[1751319849202,2.26745088,658.85,658.6,1.733]
[1751319849613,2.26745088,658.84,658.6,1.733]
[1751319851605,2.26745088,658.83,658.6,1.733]
[1751319852008,0.26425295,658.88,658.6,1.733]
[1751319852009,2.26745088,658.77,658.6,1.733]
[1751319852215,2.26745088,658.76,658.6,1.733]
[1751319852605,2.26745088,658.75,658.6,1.733]
[1751319852907,0.26425295,658.88,658.6,1.733]
[1751319863416,0.26425295,658.88,658.59,2.412]
[1751319866921,0.26425295,658.88,658.6,2.469]
[1751319867122,2.26745088,658.87,658.6,2.469]
[1751319867422,0.26425295,658.88,658.6,2.469]
[1751319875523,2.26745088,658.79,658.6,2.469]
[1751319879333,2.26745088,658.76,658.6,2.469]
[1751319881833,2.26745088,658.76,658.59,2.412]
[1751319884335,2.26745088,658.76,658.6,2.052]
[1751319889134,2.26745088,658.74,658.6,2.052]
[1751319894348,2.26745088,658.76,658.6,2.052]
[1751319895346,2.26745088,658.77,658.6,2.052]
[1751319896246,2.26745088,658.75,658.6,2.052]
[1751319898544,2.26745088,658.74,658.6,2.052]
[1751319899246,0.26425295,658.88,658.6,2.052]
[1751319899247,2.26745088,658.77,658.6,2.052]
[1751319899547,2.26745088,658.76,658.6,2.052]
[1751319902250,2.26745088,658.75,658.6,2.052]
[1751319903745,2.26745088,658.74,658.6,2.052]
[1751319903950,2.26745088,658.74,658.4,3.757]
[1751319905249,0.26425295,658.88,658.4,3.757]
[1751319905250,2.26745088,658.73,658.4,3.757]
[1751319907153,2.26745088,658.73,658.41,1.674]
[1751319909149,0.26425295,658.88,658.41,1.674]
[1751319909150,2.26745088,658.74,658.41,1.674]
[1751319910452,2.26745088,658.73,658.41,1.674]
[1751319913657,2.26745088,658.72,658.41,1.674]
[1751319913857,2.26745088,658.73,658.41,1.674]
[1751319919157,2.26745088,658.74,658.41,1.674]
[1751319923267,2.26745088,658.74,658.4,3.757]
[1751319924268,2.26745088,658.73,658.4,3.757]
[1751319927075,2.26745088,658.73,658.4,1.956]
[1751319927273,2.26745088,658.86,658.41,1.73]
[1751319929275,2.26745088,658.85,658.41,1.73]
[1751319929675,2.26745088,658.84,658.41,1.73]
[1751319929974,2.26745088,658.85,658.41,1.73]
[1751319930570,2.26745088,658.79,658.41,1.73]
[1751319931076,2.26745088,658.79,658.42,2.524]
[1751319931576,2.26745088,658.8,658.42,2.524]
[1751319933480,2.26745088,658.81,658.42,2.524]
[1751319935281,2.26745088,658.81,658.43,1.7]
[1751319936376,2.26745088,658.82,658.43,1.7]
[1751319937081,2.26745088,658.71,658.43,1.7]
[1751319938378,2.26745088,658.72,658.43,1.7]
[1751319939279,2.26745088,658.69,658.43,1.7]
[1751319939678,2.26745088,658.68,658.43,1.7]
[1751319939877,2.26745088,658.67,658.43,1.7]
[1751319940282,2.26745088,658.66,658.43,1.7]
[1751319940479,2.26745088,658.67,658.43,1.7]
[1751319940678,2.26745088,658.66,658.43,1.7]
[1751319941379,2.26745088,658.67,658.43,1.7]
[1751319942885,2.26745088,658.68,658.43,1.7]
[1751319946490,2.26745088,658.67,658.43,1.7]
[1751319949195,2.26745088,658.7,658.43,1.7]
[1751319954300,2.26745088,658.7,658.44,2.2]
[1751319955302,2.26745088,658.72,658.44,2.2]
[1751319961001,2.26745088,658.71,658.44,2.2]
[1751319963401,2.26745088,658.7,658.44,2.2]
[1751319967110,2.26745088,658.69,658.44,2.2]
[1751319972109,2.26745088,658.69,658.36,4.21]
[1751319973808,2.26745088,658.7,658.36,4.21]
[1751319975508,2.26745088,658.69,658.36,4.21]
[1751319975710,2.26745088,658.69,658.37,1.587]
[1751319978406,0.26425295,658.88,658.37,1.587]
[1751319988219,2.26745088,658.73,658.37,1.587]
[1751319989222,2.26745088,658.74,658.37,1.587]
[1751319989421,2.26745088,658.73,658.37,1.587]
[1751319990423,2.26745088,658.72,658.37,1.587]
[1751319991120,2.26745088,658.74,658.37,1.587]
[1751319994226,2.26745088,658.79,658.37,1.587]
[1751319997026,0.26425295,658.88,658.37,1.587]
[1751319999334,2.26745088,658.84,658.37,1.587]
[1751320001036,2.26745088,658.83,658.37,1.587]
[1751320001736,2.26745088,658.83,658.33,1.762]
[1751320002334,0.26425295,658.88,658.33,1.762]
[1751320002335,2.26745088,658.84,658.33,1.762]
[1751320004134,2.26745088,658.83,658.33,1.762]
[1751320004538,2.26745088,658.82,658.33,1.762]
[1751320004734,2.26745088,658.83,658.33,1.762]
[1751320006435,2.26745088,658.82,658.33,1.762]
[1751320006735,2.26745088,658.69,658.33,1.762]
[1751320009134,2.26745088,658.67,658.33,1.762]
[1751320012043,2.26745088,658.66,658.33,1.762]
[1751320012343,2.26745088,658.67,658.33,1.762]
[1751320013937,2.26745088,658.68,658.33,1.762]
[1751320015743,2.26745088,658.67,658.33,1.762]
[1751320016645,2.26745088,658.68,658.33,1.762]
[1751320019247,2.26745088,658.69,658.33,1.762]
[1751320020349,2.26745088,658.68,658.33,1.762]
[1751320022052,2.26745088,658.67,658.33,1.762]
[1751320022750,2.26745088,658.66,658.33,1.762]
[1751320023348,2.26745088,658.69,658.18,2.507]
[1751320023647,2.26745088,658.7,658.19,1.0384974]
[1751320023851,2.26745088,658.7,658.2,1.0384974]
[1751320024049,2.26745088,658.69,658.21,1.0384974]
[1751320024249,2.26745088,658.69,658.22,1.0384974]
[1751320024454,2.26745088,658.69,658.23,1.0384974]
[1751320024751,2.26745088,658.69,658.24,1.0384974]
[1751320024952,2.26745088,658.7,658.25,1.0384974]
[1751320025150,2.26745088,658.7,658.26,1.0384974]
[1751320025354,2.26745088,658.7,658.27,1.0384974]
[1751320025549,2.26745088,658.69,658.28,1.0384974]
[1751320025754,2.26745088,658.69,658.29,1.0384974]
[1751320026050,2.26745088,658.69,658.3,1.0384974]
[1751320026256,2.26745088,658.7,658.18,2.507]
[1751320026455,2.26745088,658.7,658.19,1.03847453]
[1751320026657,2.26745088,658.69,658.2,1.03847453]
[1751320026952,2.26745088,658.69,658.21,1.03847453]
[1751320027156,2.26745088,658.69,658.22,1.03847453]
[1751320027455,2.26745088,658.69,658.18,2.507]
[1751320027456,2.26745088,658.69,658.23,1.03847453]
[1751320027653,2.26745088,658.69,658.24,1.03847453]
[1751320027856,2.26745088,658.69,658.25,1.03847453]
[1751320028057,2.26745088,658.69,658.26,1.03847453]
[1751320028257,2.26745088,658.69,658.27,1.03847453]
[1751320028554,2.26745088,658.69,658.28,1.03847453]
[1751320028758,2.26745088,658.71,658.29,1.03847453]
[1751320028955,2.26745088,658.71,658.3,1.03847453]
[1751320029154,2.26745088,658.71,658.18,2.507]
[1751320029360,2.26745088,658.69,658.19,1.03846056]
[1751320029655,2.26745088,658.69,658.2,1.03846056]
[1751320029856,2.26745088,658.69,658.21,1.03846056]
[1751320030054,2.26745088,658.69,658.22,1.03846056]
[1751320030258,2.26745088,658.69,658.23,1.03846056]
[1751320030456,2.26745088,658.69,658.24,1.03846056]
[1751320030661,2.26745088,658.69,658.25,1.03846056]
[1751320030861,2.26745088,658.69,658.26,1.03846056]
[1751320031061,2.26745088,658.69,658.27,1.03846056]
[1751320031258,2.26745088,658.69,658.28,1.03846056]
[1751320031459,2.26745088,658.69,658.18,2.507]
[1751320031663,2.26745088,658.69,658.19,1.0384491]
[1751320031864,2.26745088,658.69,658.2,1.0384491]
[1751320032062,2.26745088,658.81,658.21,1.0384491]
[1751320032366,2.26745088,658.81,658.22,1.0384491]
[1751320032565,2.26745088,658.81,658.23,1.0384491]
[1751320032865,2.26745088,658.81,658.24,1.0384491]
[1751320033065,2.26745088,658.81,658.25,1.0384491]
[1751320033365,2.26745088,658.81,658.26,1.0384491]
[1751320033565,2.26745088,658.81,658.27,1.0384491]
[1751320033865,2.26745088,658.81,658.28,1.0384491]
[1751320034065,2.26745088,658.81,658.29,1.0384491]
[1751320034266,2.26745088,658.81,658.3,1.0384491]
[1751320034467,2.26745088,658.81,658.13,0.26429811]
[1751320034664,2.26745088,658.81,658.14,1.03843553]
[1751320034968,2.26745088,658.81,658.15,1.03843553]
[1751320035164,2.26745088,658.81,658.16,1.03843553]
[1751320035368,2.26745088,658.81,658.17,1.03843553]
[1751320035666,2.26745088,658.81,658.18,1.03843553]
[1751320035868,2.26745088,658.81,658.19,1.03843553]
[1751320036068,2.26745088,658.81,658.2,1.03843553]
[1751320036265,2.26745088,658.81,658.21,1.03843553]
[1751320036566,2.26745088,658.81,658.22,1.03843553]
[1751320036770,2.26745088,658.81,658.23,1.03843553]
[1751320036970,2.26745088,658.81,658.24,1.03843553]
[1751320037166,2.26745088,658.81,658.25,1.03843553]
[1751320037370,2.26745088,658.81,658.26,1.03843553]
[1751320037569,2.26745088,658.81,658.27,1.03843553]
[1751320037770,2.26745088,658.81,658.28,1.03843553]
[1751320037967,2.26745088,658.81,658.29,1.03843553]
[1751320038168,2.26745088,658.81,658.3,1.03843553]
[1751320038369,2.26745088,658.81,658.18,2.343]
[1751320038569,2.26745088,658.8,658.19,1.03843144]
[1751320038768,2.26745088,658.8,658.2,1.03843144]
[1751320038971,2.26745088,658.8,658.21,1.03843144]
[1751320039169,2.26745088,658.8,658.22,1.03843144]
[1751320039373,2.26745088,658.82,658.23,1.03843144]
[1751320039579,2.26745088,658.82,658.24,1.03843144]
[1751320039775,2.26745088,658.82,658.25,1.03843144]
[1751320039972,2.26745088,658.82,658.26,1.03843144]
[1751320040275,2.26745088,658.82,658.27,1.03843144]
[1751320040473,2.26745088,658.82,658.28,1.03843144]
[1751320040674,2.26745088,658.82,658.29,1.03843144]
[1751320040875,2.26745088,658.82,658.3,1.03843144]
[1751320041076,2.26745088,658.82,658.31,1.03843144]
[1751320041277,2.26745088,658.82,658.32,1.03843144]
[1751320041477,2.26745088,658.82,658.18,2.343]
[1751320041771,2.26745088,658.82,658.19,1.03841798]
[1751320041979,2.26745088,658.7,658.2,1.03841798]
[1751320042177,2.26745088,658.7,658.21,1.03841798]
[1751320042374,2.26745088,658.7,658.22,1.03841798]
[1751320042577,2.26745088,658.7,658.23,1.03841798]
[1751320042779,2.26745088,658.7,658.24,1.03841798]
[1751320043080,2.26745088,658.7,658.25,1.03841798]
[1751320043277,2.26745088,658.67,658.26,1.03841798]
[1751320043477,2.26745088,658.67,658.27,1.03841798]
[1751320043777,2.26745088,658.67,658.28,1.03841798]
[1751320043980,2.26745088,658.67,658.29,1.03841798]
[1751320044277,2.26745088,658.68,658.3,1.03841798]
[1751320044477,2.26745088,658.68,658.31,1.03841798]
[1751320044680,2.26745088,658.68,658.18,2.343]
[1751320044878,2.26745088,658.68,658.19,1.03840978]
[1751320045075,2.26745088,658.68,658.2,1.03840978]
[1751320045282,2.26745088,658.68,658.21,1.03840978]
[1751320045579,2.26745088,658.68,658.22,1.03840978]
[1751320045777,2.26745088,658.77,658.23,1.03840978]
[1751320046085,2.26745088,658.78,658.24,1.03840978]
[1751320046381,2.26745088,658.78,658.25,1.03840978]
[1751320046580,2.26745088,658.78,658.26,1.03840978]
[1751320046777,2.26745088,658.78,658.27,1.03840978]
[1751320046978,2.26745088,658.78,658.28,1.03840978]
[1751320047180,2.26745088,658.78,658.29,1.03840978]
[1751320047382,2.26745088,658.77,658.3,1.03840978]
[1751320047579,2.26745088,658.77,658.31,1.03840978]
[1751320047879,2.26745088,658.77,658.18,2.343]
[1751320048182,2.26745088,658.77,658.19,1.0379456]
[1751320048379,2.26745088,658.77,658.2,1.0379456]
[1751320048579,2.26745088,658.77,658.21,1.0379456]
[1751320048778,2.26745088,658.77,658.22,1.0379456]
[1751320048980,2.26745088,658.77,658.23,1.0379456]
[1751320049183,2.26745088,658.77,658.24,1.0379456]
[1751320049383,2.26745088,658.77,658.25,1.0379456]
[1751320049589,2.26745088,658.77,658.26,1.0379456]
[1751320049784,2.26745088,658.77,658.27,1.0379456]
[1751320049981,2.26745088,658.77,658.28,1.0379456]
[1751320050279,2.26745088,658.77,658.29,1.0379456]
[1751320050484,2.26745088,658.77,658.3,1.0379456]
[1751320050782,2.26745088,658.77,658.31,1.0379456]
[1751320050980,2.26745088,658.77,658.18,2.343]
[1751320051284,2.26745088,658.77,658.19,1.03794242]
[1751320051579,2.26745088,658.77,658.2,1.03794242]
[1751320051784,2.26745088,658.77,658.21,1.03794242]
[1751320051982,2.26745088,658.77,658.22,1.03794242]
[1751320052283,2.26745088,658.77,658.23,1.03794242]
[1751320052479,2.26745088,658.77,658.24,1.03794242]
[1751320052684,2.26745088,658.77,658.25,1.03794242]
[1751320052883,2.26745088,658.77,658.26,1.03794242]
[1751320053084,2.26745088,658.77,658.27,1.03794242]